[Event "Live Chess"]
[Site "Chess.com"]
[Date "2023.05.20"]
[Round "-"]
[White "chessfiction"]
[Black "educatedlad"]
[Result "1-0"]
[WhiteElo "2350"]
[BlackElo "1629"]
[TimeControl "300"]
[EndTime "15:52:55 PDT"]
[Termination "chessfiction won by checkmate"]

1. e4 {[%clk 0:04:59.5]} 1... e6 {[%clk 0:04:58.9]} 2. d4 {[%clk 0:04:59.4]}
2... d5 {[%clk 0:04:58.4]} 3. Nc3 {[%clk 0:04:58.5]} 3... Nf6 {[%clk 0:04:56.9]}
4. e5 {[%clk 0:04:57.7]} 4... Nfd7 {[%clk 0:04:55.4]} 5. Nce2 {[%clk 0:04:57.6]}
5... c5 {[%clk 0:04:54.2]} 6. f4 {[%clk 0:04:57.5]} 6... Nc6 {[%clk 0:04:50.7]}
7. Nf3 {[%clk 0:04:57.4]} 7... Be7 {[%clk 0:04:49.3]} 8. h4 {[%clk 0:04:56.6]}
8... O-O {[%clk 0:04:48.9]} 9. h5 {[%clk 0:04:50.5]} 9... h6 {[%clk 0:04:47.8]}
10. g4 {[%clk 0:04:48.9]} 10... f5 {[%clk 0:04:44.4]} 11. g5 {[%clk 0:04:47.5]}
11... Kh7 {[%clk 0:04:35.9]} 12. Rg1 {[%clk 0:04:45]} 12... Rg8 {[%clk
0:04:31.2]} 13. Ng3 {[%clk 0:04:42.9]} 13... cxd4 {[%clk 0:04:26.5]} 14. Bd3
{[%clk 0:04:41.4]} 14... Nb4 {[%clk 0:04:24.3]} 15. Nxf5 {[%clk 0:04:33.4]}
15... Nxd3+ {[%clk 0:04:22.2]} 16. Qxd3 {[%clk 0:04:33.3]} 16... exf5 {[%clk
0:04:20.6]} 17. Qxf5+ {[%clk 0:04:33.2]} 17... Kh8 {[%clk 0:04:19.6]} 18. e6
{[%clk 0:04:26.1]} 18... Nc5 {[%clk 0:04:16.5]} 19. Nxd4 {[%clk 0:04:04.9]}
19... Bxe6 {[%clk 0:04:08.2]} 20. Nxe6 {[%clk 0:04:02.7]} 20... Nxe6 {[%clk
0:04:07.3]} 21. Qxe6 {[%clk 0:04:01.9]} 21... Bb4+ {[%clk 0:04:05.4]} 22. Kd1
{[%clk 0:03:55.4]} 22... Qb6 {[%clk 0:03:55.6]} 23. Qxb6 {[%clk 0:03:52.4]}
23... axb6 {[%clk 0:03:54.1]} 24. Be3 {[%clk 0:03:49]} 24... b5 {[%clk 0:03:52]}
25. Bd4 {[%clk 0:03:47.7]} 25... hxg5 {[%clk 0:03:50]} 26. h6 {[%clk 0:03:46.8]}
26... Kh7 {[%clk 0:03:47.5]} 27. hxg7 {[%clk 0:03:43.2]} 27... gxf4 {[%clk
0:03:41]} 28. c3 {[%clk 0:03:42.5]} 28... Bd6 {[%clk 0:03:39]} 29. Kc2 {[%clk
0:03:41.4]} 29... Kh6 {[%clk 0:03:36.1]} 30. Rg2 {[%clk 0:03:40.2]} 30... f3
{[%clk 0:03:34.1]} 31. Rh1+ {[%clk 0:03:39.2]} 31... Bh2 {[%clk 0:03:30.6]} 32.
Rhxh2# {[%clk 0:03:39.1]} 1-0

[Event "Live Chess"]
[Site "Chess.com"]
[Date "2023.05.20"]
[Round "-"]
[White "laminaaprod"]
[Black "SupremeTactician"]
[Result "1-0"]
[WhiteElo "2253"]
[BlackElo "2333"]
[TimeControl "300"]
[EndTime "15:52:56 PDT"]
[Termination "laminaaprod won by resignation"]

1. d4 {[%clk 0:04:53.7]} 1... f5 {[%clk 0:04:57.8]} 2. e4 {[%clk 0:04:52.4]}
2... d6 {[%clk 0:04:55.6]} 3. exf5 {[%clk 0:04:51.4]} 3... Bxf5 {[%clk
0:04:55.3]} 4. Bd3 {[%clk 0:04:50.6]} 4... Bxd3 {[%clk 0:04:54.2]} 5. Qxd3
{[%clk 0:04:50]} 5... g6 {[%clk 0:04:53.7]} 6. Nf3 {[%clk 0:04:49.4]} 6... Bg7
{[%clk 0:04:52.6]} 7. O-O {[%clk 0:04:49.1]} 7... Nf6 {[%clk 0:04:52.1]} 8. d5
{[%clk 0:04:39.5]} 8... O-O {[%clk 0:04:46.7]} 9. Ng5 {[%clk 0:04:29.9]} 9...
Qc8 {[%clk 0:04:37.4]} 10. Ne6 {[%clk 0:04:24.8]} 10... Rf7 {[%clk 0:04:36.5]}
11. c4 {[%clk 0:04:19]} 11... Nbd7 {[%clk 0:04:33.9]} 12. Nc3 {[%clk 0:04:15.7]}
12... Ne5 {[%clk 0:04:32.9]} 13. Qe2 {[%clk 0:04:12.9]} 13... c6 {[%clk
0:04:19.8]} 14. Bf4 {[%clk 0:03:56.4]} 14... cxd5 {[%clk 0:04:17.5]} 15. Bxe5
{[%clk 0:03:45.2]} 15... dxe5 {[%clk 0:04:14.8]} 16. cxd5 {[%clk 0:03:44]} 16...
Nxd5 {[%clk 0:03:56.9]} 17. Nxd5 {[%clk 0:03:41.9]} 17... Qxe6 {[%clk
0:03:55.9]} 18. Nc7 {[%clk 0:03:41.6]} 18... Qc8 {[%clk 0:03:50.1]} 19. Nxa8
{[%clk 0:03:40.3]} 19... Qxa8 {[%clk 0:03:50]} 20. Rac1 {[%clk 0:03:37.3]} 20...
b6 {[%clk 0:03:48.1]} 21. Rfe1 {[%clk 0:03:34.1]} 21... Qd5 {[%clk 0:03:21.3]}
22. b3 {[%clk 0:03:29.7]} 22... h6 {[%clk 0:03:13.1]} 23. Red1 {[%clk
0:03:17.3]} 23... Qe6 {[%clk 0:03:05.8]} 24. Qe4 {[%clk 0:03:13.1]} 24... Rf4
{[%clk 0:03:01.9]} 25. Qc6 {[%clk 0:03:04.9]} 25... Qf7 {[%clk 0:02:45.7]} 26.
Qd5 {[%clk 0:02:54.5]} 26... e6 {[%clk 0:02:40.9]} 27. Qd8+ {[%clk 0:02:50.7]}
27... Kh7 {[%clk 0:02:39.7]} 28. Rc7 {[%clk 0:02:45.1]} 28... Qf8 {[%clk
0:02:27.4]} 29. Qxf8 {[%clk 0:02:40.4]} 29... Rxf8 {[%clk 0:02:27.3]} 30. Rdd7
{[%clk 0:02:35.3]} 1-0

[Event "Live Chess"]
[Site "Chess.com"]
[Date "2023.05.20"]
[Round "-"]
[White "Biranidun"]
[Black "EdenHazard8"]
[Result "1-0"]
[WhiteElo "2684"]
[BlackElo "2063"]
[TimeControl "300"]
[EndTime "15:53:11 PDT"]
[Termination "Biranidun won by resignation"]

1. e4 {[%clk 0:04:59]} 1... c6 {[%clk 0:04:55.7]} 2. d4 {[%clk 0:04:58]} 2... d5
{[%clk 0:04:55.6]} 3. e5 {[%clk 0:04:57.5]} 3... c5 {[%clk 0:04:54.7]} 4. dxc5
{[%clk 0:04:56.8]} 4... e6 {[%clk 0:04:53.2]} 5. a3 {[%clk 0:04:56.5]} 5... Nd7
{[%clk 0:04:51.6]} 6. Nf3 {[%clk 0:04:53.7]} 6... Bxc5 {[%clk 0:04:49.7]} 7. c4
{[%clk 0:04:52.5]} 7... dxc4 {[%clk 0:04:43.2]} 8. Bxc4 {[%clk 0:04:52.4]} 8...
a6 {[%clk 0:04:41]} 9. O-O {[%clk 0:04:51.5]} 9... b5 {[%clk 0:04:38.7]} 10. Bd3
{[%clk 0:04:46]} 10... Bb7 {[%clk 0:04:37.9]} 11. Nc3 {[%clk 0:04:45.3]} 11...
Ne7 {[%clk 0:04:35.7]} 12. Ne4 {[%clk 0:04:44.1]} 12... h6 {[%clk 0:04:26.7]}
13. b4 {[%clk 0:04:42.6]} 13... Bxe4 {[%clk 0:04:18.6]} 14. Bxe4 {[%clk
0:04:42.5]} 14... Bb6 {[%clk 0:04:14.9]} 15. Bxa8 {[%clk 0:04:35.8]} 15... Qxa8
{[%clk 0:04:14.8]} 16. Bf4 {[%clk 0:04:25.4]} 16... Nd5 {[%clk 0:04:13.1]} 17.
Bg3 {[%clk 0:04:24.4]} 17... O-O {[%clk 0:04:10.7]} 18. Rc1 {[%clk 0:04:21.9]}
18... Rc8 {[%clk 0:04:07.5]} 19. Qd3 {[%clk 0:04:19.2]} 19... Nf8 {[%clk
0:03:56.3]} 20. h4 {[%clk 0:04:14.5]} 20... Ng6 {[%clk 0:03:54.4]} 21. h5 {[%clk
0:04:13]} 21... Ngf4 {[%clk 0:03:53.3]} 22. Rxc8+ {[%clk 0:04:05.7]} 22... Qxc8
{[%clk 0:03:51.4]} 23. Bxf4 {[%clk 0:04:05.3]} 23... Nxf4 {[%clk 0:03:51.3]} 24.
Qd6 {[%clk 0:03:57.9]} 24... Qc4 {[%clk 0:03:23.8]} 25. Qxb6 {[%clk 0:03:41.1]}
25... Ne2+ {[%clk 0:03:21.5]} 26. Kh1 {[%clk 0:03:40.7]} 26... Qg4 {[%clk
0:03:17.3]} 27. Qd8+ {[%clk 0:03:37.4]} 27... Kh7 {[%clk 0:03:16.2]} 28. Qh4
{[%clk 0:03:37.3]} 1-0

[Event "Live Chess"]
[Site "Chess.com"]
[Date "2023.05.20"]
[Round "-"]
[White "BJAW87"]
[Black "1600x"]
[Result "0-1"]
[WhiteElo "1426"]
[BlackElo "1785"]
[TimeControl "300"]
[EndTime "15:53:12 PDT"]
[Termination "1600x won by resignation"]

1. e4 {[%clk 0:04:59.3]} 1... e5 {[%clk 0:04:53.8]} 2. Nc3 {[%clk 0:04:58.8]}
2... d6 {[%clk 0:04:50.9]} 3. f4 {[%clk 0:04:58.1]} 3... Qf6 {[%clk 0:04:47.9]}
4. fxe5 {[%clk 0:04:55.2]} 4... dxe5 {[%clk 0:04:46.1]} 5. Nf3 {[%clk
0:04:49.4]} 5... Nc6 {[%clk 0:04:43.4]} 6. Nd5 {[%clk 0:04:40.5]} 6... Qd6
{[%clk 0:04:40.8]} 7. Bc4 {[%clk 0:04:19]} 7... Na5 {[%clk 0:04:32.5]} 8. Bb3
{[%clk 0:03:57.7]} 8... c6 {[%clk 0:04:29.6]} 9. Nc3 {[%clk 0:03:44]} 9... b5
{[%clk 0:04:26.1]} 10. O-O {[%clk 0:03:28.9]} 10... b4 {[%clk 0:04:21.8]} 11.
Ne2 {[%clk 0:03:07.9]} 11... Nxb3 {[%clk 0:04:15.9]} 12. axb3 {[%clk 0:03:07.8]}
12... c5 {[%clk 0:04:12.6]} 13. Ng5 {[%clk 0:02:56.6]} 13... f6 {[%clk
0:04:06.9]} 14. Nh3 {[%clk 0:02:33.8]} 14... a6 {[%clk 0:04:01.8]} 15. Ng3
{[%clk 0:02:31.5]} 15... Nh6 {[%clk 0:03:58.9]} 16. d3 {[%clk 0:02:30.2]} 16...
Bg4 {[%clk 0:03:43.9]} 17. Qe1 {[%clk 0:02:19.9]} 17... c4 {[%clk 0:03:40.8]}
18. Bxh6 {[%clk 0:02:17.6]} 18... Bxh3 {[%clk 0:03:34.9]} 19. Bxg7 {[%clk
0:02:09.5]} 19... Bxg7 {[%clk 0:03:32.5]} 20. gxh3 {[%clk 0:02:07.9]} 20... Qb6+
{[%clk 0:03:27.3]} 21. Kg2 {[%clk 0:02:05.2]} 21... cxd3 {[%clk 0:03:21.9]} 22.
cxd3 {[%clk 0:02:03.9]} 22... Bh6 {[%clk 0:03:13.2]} 23. Nf5 {[%clk 0:01:58.6]}
23... Rg8+ {[%clk 0:03:08.8]} 24. Kh1 {[%clk 0:01:56.6]} 24... Bf8 {[%clk
0:03:06.4]} 25. Qh4 {[%clk 0:01:46.6]} 25... Rg5 {[%clk 0:03:03.7]} 26. Qxh7
{[%clk 0:01:39.9]} 26... Ra7 {[%clk 0:02:59.5]} 27. Qh4 {[%clk 0:01:31.3]} 27...
Rd7 {[%clk 0:02:55.1]} 28. Rfd1 {[%clk 0:01:20.8]} 28... Rg6 {[%clk 0:02:51.2]}
29. Qe1 {[%clk 0:01:05.4]} 29... Rg5 {[%clk 0:02:48]} 30. Ne3 {[%clk 0:01:02.4]}
30... Rgg7 {[%clk 0:02:45.2]} 31. Nc4 {[%clk 0:01:01.2]} 31... Qb5 {[%clk
0:02:42.8]} 32. Ra5 {[%clk 0:00:57.8]} 32... Qb8 {[%clk 0:02:40.6]} 33. Qe3
{[%clk 0:00:49.8]} 33... Qa7 {[%clk 0:02:37.9]} 34. Qxa7 {[%clk 0:00:48]} 34...
Rxa7 {[%clk 0:02:36.5]} 35. Rf1 {[%clk 0:00:44.2]} 35... Be7 {[%clk 0:02:33.1]}
36. Rd5 {[%clk 0:00:40]} 36... Rc7 {[%clk 0:02:30.8]} 37. Nd6+ {[%clk
0:00:38.7]} 37... Bxd6 {[%clk 0:02:28.5]} 38. Rxd6 {[%clk 0:00:38.6]} 38... Rgd7
{[%clk 0:02:25.1]} 39. Rdxf6 {[%clk 0:00:37.5]} 39... Rxd3 {[%clk 0:02:23.4]}
40. Rf8+ {[%clk 0:00:36.6]} 40... Kd7 {[%clk 0:02:21.1]} 41. R1f7+ {[%clk
0:00:36.1]} 41... Kc6 {[%clk 0:02:19.9]} 42. Rf6+ {[%clk 0:00:34.8]} 42... Kb7
{[%clk 0:02:18.6]} 43. R8f7 {[%clk 0:00:33.8]} 43... Rxb3 {[%clk 0:02:16.3]} 44.
Rxc7+ {[%clk 0:00:33.4]} 44... Kxc7 {[%clk 0:02:14.2]} 45. Re6 {[%clk
0:00:33.3]} 45... Rxb2 {[%clk 0:02:12.3]} 46. Rxe5 {[%clk 0:00:33.2]} 46... Ra2
{[%clk 0:02:06.2]} 47. h4 {[%clk 0:00:32.5]} 47... b3 {[%clk 0:02:04.1]} 48.
Rc5+ {[%clk 0:00:30.1]} 48... Kb7 {[%clk 0:02:01.6]} 49. e5 {[%clk 0:00:24.4]}
49... b2 {[%clk 0:02:00]} 50. Kg2 {[%clk 0:00:23.7]} 50... b1=Q+ {[%clk
0:01:58.3]} 51. Kh3 {[%clk 0:00:23.6]} 51... Qb3+ {[%clk 0:01:54.9]} 52. Kg4
{[%clk 0:00:13.9]} 0-1

[Event "Live Chess"]
[Site "Chess.com"]
[Date "2023.05.20"]
[Round "-"]
[White "GiacoPietro"]
[Black "martynstanley"]
[Result "0-1"]
[WhiteElo "778"]
[BlackElo "1010"]
[TimeControl "300"]
[EndTime "15:53:15 PDT"]
[Termination "martynstanley won by checkmate"]

1. g3 {[%clk 0:04:57.5]} 1... e6 {[%clk 0:04:59.4]} 2. Bg2 {[%clk 0:04:54.8]}
2... d5 {[%clk 0:04:58.6]} 3. c4 {[%clk 0:04:52]} 3... c5 {[%clk 0:04:57.9]} 4.
cxd5 {[%clk 0:04:49.6]} 4... exd5 {[%clk 0:04:55.5]} 5. Nc3 {[%clk 0:04:47.4]}
5... d4 {[%clk 0:04:52]} 6. Ne4 {[%clk 0:04:29.7]} 6... Nf6 {[%clk 0:04:49.3]}
7. d3 {[%clk 0:04:26.4]} 7... Nxe4 {[%clk 0:04:47.9]} 8. Bxe4 {[%clk 0:04:23.4]}
8... Qa5+ {[%clk 0:04:45.8]} 9. Bd2 {[%clk 0:04:20]} 9... Qb6 {[%clk 0:04:44.8]}
10. b3 {[%clk 0:04:13.3]} 10... Bd7 {[%clk 0:04:43.8]} 11. Nf3 {[%clk
0:04:05.9]} 11... Nc6 {[%clk 0:04:42.5]} 12. O-O {[%clk 0:04:03.4]} 12... g6
{[%clk 0:04:41.6]} 13. e3 {[%clk 0:03:34.1]} 13... f5 {[%clk 0:04:40.4]} 14.
Bxc6 {[%clk 0:03:30.2]} 14... Bxc6 {[%clk 0:04:39]} 15. exd4 {[%clk 0:03:24.2]}
15... Bd5 {[%clk 0:04:35.8]} 16. dxc5 {[%clk 0:03:15.9]} 16... Qc6 {[%clk
0:04:34]} 17. Rc1 {[%clk 0:03:08.1]} 17... Bxf3 {[%clk 0:04:31.6]} 18. Re1+
{[%clk 0:02:52.1]} 18... Be7 {[%clk 0:04:29.8]} 19. Rxe7+ {[%clk 0:02:16.3]}
19... Kxe7 {[%clk 0:04:27.3]} 20. Qe1+ {[%clk 0:02:15.4]} 20... Kd7 {[%clk
0:04:25.5]} 21. Rc3 {[%clk 0:02:03.9]} 21... Rae8 {[%clk 0:04:22]} 22. Be3
{[%clk 0:01:57.7]} 22... Re7 {[%clk 0:04:20.1]} 23. d4 {[%clk 0:01:55]} 23...
Rhe8 {[%clk 0:04:18]} 24. Bg5 {[%clk 0:01:52.1]} 24... Rxe1# {[%clk 0:04:15.3]}
0-1

[Event "Live Chess"]
[Site "Chess.com"]
[Date "2023.05.20"]
[Round "-"]
[White "AlanPaling"]
[Black "Daniel_Gliddon_FA"]
[Result "1-0"]
[WhiteElo "1297"]
[BlackElo "1230"]
[TimeControl "300"]
[EndTime "15:53:45 PDT"]
[Termination "AlanPaling won by resignation"]

1. c4 {[%clk 0:04:57.9]} 1... Nf6 {[%clk 0:04:55.7]} 2. Nc3 {[%clk 0:04:54.3]}
2... g6 {[%clk 0:04:50.3]} 3. e4 {[%clk 0:04:52]} 3... Bg7 {[%clk 0:04:49.1]} 4.
g3 {[%clk 0:04:50.9]} 4... Nc6 {[%clk 0:04:44.2]} 5. Bg2 {[%clk 0:04:48.4]} 5...
O-O {[%clk 0:04:40.1]} 6. Nge2 {[%clk 0:04:47.8]} 6... e6 {[%clk 0:04:33]} 7.
O-O {[%clk 0:04:47.1]} 7... d5 {[%clk 0:04:30.2]} 8. cxd5 {[%clk 0:04:43.3]}
8... exd5 {[%clk 0:04:28.6]} 9. e5 {[%clk 0:04:42.5]} 9... Nd7 {[%clk
0:04:24.2]} 10. d4 {[%clk 0:04:40.3]} 10... Nb6 {[%clk 0:04:18.1]} 11. b3 {[%clk
0:04:36.6]} 11... Bf5 {[%clk 0:04:13.6]} 12. a3 {[%clk 0:04:25.7]} 12... Qd7
{[%clk 0:04:03.6]} 13. Be3 {[%clk 0:04:21.7]} 13... f6 {[%clk 0:03:56.4]} 14. f4
{[%clk 0:04:15.7]} 14... fxe5 {[%clk 0:03:52.3]} 15. fxe5 {[%clk 0:04:11.9]}
15... Nxe5 {[%clk 0:03:39.3]} 16. dxe5 {[%clk 0:04:08.1]} 16... Bxe5 {[%clk
0:03:37.5]} 17. Bxd5+ {[%clk 0:03:58.5]} 17... Nxd5 {[%clk 0:03:26.7]} 18. Qxd5+
{[%clk 0:03:57.9]} 18... Qxd5 {[%clk 0:03:25.3]} 19. Nxd5 {[%clk 0:03:56.6]}
19... Bxa1 {[%clk 0:03:22.1]} 20. Rxa1 {[%clk 0:03:53.3]} 20... c6 {[%clk
0:03:17.3]} 21. Ne7+ {[%clk 0:03:49.7]} 21... Kf7 {[%clk 0:03:12.1]} 22. Nxf5
{[%clk 0:03:47.6]} 22... gxf5 {[%clk 0:03:09.7]} 23. Nf4 {[%clk 0:03:45.6]}
23... Kg8 {[%clk 0:03:06.7]} 24. Bc5 {[%clk 0:03:42.5]} 24... Rfe8 {[%clk
0:03:02.6]} 25. Kf2 {[%clk 0:03:39.6]} 25... b6 {[%clk 0:02:58.3]} 26. Be3
{[%clk 0:03:33.2]} 26... c5 {[%clk 0:02:55]} 27. Rb1 {[%clk 0:03:29]} 27... Rad8
{[%clk 0:02:52.3]} 28. b4 {[%clk 0:03:25.1]} 28... c4 {[%clk 0:02:49.5]} 29. b5
{[%clk 0:03:23.9]} 29... Rd7 {[%clk 0:02:41.4]} 30. Rc1 {[%clk 0:03:21.6]} 30...
Rde7 {[%clk 0:02:39]} 31. Ng2 {[%clk 0:03:14.7]} 31... Re4 {[%clk 0:02:36.4]}
32. Rc3 {[%clk 0:03:13.4]} 32... Kf7 {[%clk 0:02:32.8]} 33. a4 {[%clk
0:03:11.7]} 33... Rd8 {[%clk 0:02:14.9]} 34. Nf4 {[%clk 0:03:06.5]} 34... Rd1
{[%clk 0:02:10.5]} 35. Ne2 {[%clk 0:02:32.5]} 35... Ra1 {[%clk 0:02:04.4]} 36.
Kf3 {[%clk 0:02:31.3]} 36... Rxa4 {[%clk 0:02:00.8]} 37. g4 {[%clk 0:02:26.9]}
37... Re5 {[%clk 0:01:53.5]} 38. gxf5 {[%clk 0:02:23.6]} 38... Rxf5+ {[%clk
0:01:51.3]} 39. Ke4 {[%clk 0:02:17.8]} 39... Rxb5 {[%clk 0:01:49.9]} 40. Nd4
{[%clk 0:02:13.6]} 40... Rh5 {[%clk 0:01:42.7]} 41. Nf3 {[%clk 0:02:06]} 41...
b5 {[%clk 0:01:35.8]} 42. Bf4 {[%clk 0:01:52.1]} 42... Ra2 {[%clk 0:01:30]} 43.
h3 {[%clk 0:01:43.7]} 43... Re2+ {[%clk 0:01:28.4]} 44. Kd4 {[%clk 0:01:40.2]}
44... a5 {[%clk 0:01:26.1]} 45. Bc7 {[%clk 0:01:29.8]} 45... a4 {[%clk
0:01:17.3]} 46. Bd6 {[%clk 0:01:26.2]} 46... Rxh3 {[%clk 0:01:14.2]} 47. Ng5+
{[%clk 0:01:21.1]} 47... Kg6 {[%clk 0:01:05.1]} 48. Nxh3 {[%clk 0:01:19.6]}
48... Rd2+ {[%clk 0:00:58.2]} 49. Kc5 {[%clk 0:01:16.3]} 49... b4 {[%clk
0:00:55.7]} 50. Rxc4 {[%clk 0:01:12.2]} 50... b3 {[%clk 0:00:54.6]} 51. Be5
{[%clk 0:01:00.8]} 51... Re2 {[%clk 0:00:48.6]} 52. Nf4+ {[%clk 0:00:52.1]}
52... Kf5 {[%clk 0:00:44.6]} 53. Nxe2 {[%clk 0:00:49]} 53... Kxe5 {[%clk
0:00:43.6]} 54. Rxa4 {[%clk 0:00:47.8]} 54... b2 {[%clk 0:00:42.6]} 55. Rb4
{[%clk 0:00:46.6]} 1-0

[Event "Live Chess"]
[Site "Chess.com"]
[Date "2023.05.20"]
[Round "-"]
[White "CheckThis4"]
[Black "JoshMcK"]
[Result "1-0"]
[WhiteElo "2518"]
[BlackElo "1518"]
[TimeControl "300"]
[EndTime "15:53:45 PDT"]
[Termination "CheckThis4 won by resignation"]

1. d4 {[%clk 0:04:58.9]} 1... d5 {[%clk 0:04:57.1]} 2. Bg5 {[%clk 0:04:56.1]}
2... h6 {[%clk 0:04:51.4]} 3. Bh4 {[%clk 0:04:55.2]} 3... Nf6 {[%clk 0:04:49.5]}
4. e3 {[%clk 0:04:52.2]} 4... Nc6 {[%clk 0:04:45.9]} 5. c4 {[%clk 0:04:50.6]}
5... dxc4 {[%clk 0:04:42.2]} 6. Bxc4 {[%clk 0:04:48.8]} 6... e6 {[%clk
0:04:41.1]} 7. Nc3 {[%clk 0:04:47.3]} 7... Be7 {[%clk 0:04:40.2]} 8. Nf3 {[%clk
0:04:46.5]} 8... O-O {[%clk 0:04:38.8]} 9. O-O {[%clk 0:04:46.1]} 9... Nd5
{[%clk 0:04:19.2]} 10. Bxe7 {[%clk 0:04:37.2]} 10... Ncxe7 {[%clk 0:04:16.5]}
11. Rc1 {[%clk 0:04:34.2]} 11... b6 {[%clk 0:04:09.9]} 12. Nxd5 {[%clk
0:04:28.1]} 12... Nxd5 {[%clk 0:04:08.4]} 13. e4 {[%clk 0:04:27]} 13... Ne7
{[%clk 0:04:06.2]} 14. e5 {[%clk 0:04:20.1]} 14... Bb7 {[%clk 0:04:03.5]} 15.
Bd3 {[%clk 0:04:18.3]} 15... Bxf3 {[%clk 0:03:58.2]} 16. gxf3 {[%clk 0:04:13]}
16... Nd5 {[%clk 0:03:49.2]} 17. Kh1 {[%clk 0:04:09.1]} 17... Qg5 {[%clk
0:03:42.2]} 18. Rg1 {[%clk 0:04:05.2]} 18... Qh5 {[%clk 0:03:36]} 19. Be4 {[%clk
0:04:03.9]} 19... Rac8 {[%clk 0:03:31.3]} 20. Rg3 {[%clk 0:04:01.9]} 20... Nf4
{[%clk 0:03:22.5]} 21. Qd2 {[%clk 0:03:57.5]} 21... Nd5 {[%clk 0:02:52.3]} 22.
Rcg1 {[%clk 0:03:51.6]} 22... g6 {[%clk 0:01:58.3]} 23. Rg4 {[%clk 0:03:48.9]}
23... Kh8 {[%clk 0:01:42.2]} 24. R1g3 {[%clk 0:03:47.1]} 24... f5 {[%clk
0:01:33.7]} 25. exf6 {[%clk 0:03:19.7]} 25... Nxf6 {[%clk 0:01:30.2]} 26. Rxg6
{[%clk 0:03:17.4]} 26... Nxe4 {[%clk 0:01:09]} 27. Rxh6+ {[%clk 0:03:14.2]} 1-0

[Event "Live Chess"]
[Site "Chess.com"]
[Date "2023.05.20"]
[Round "-"]
[White "CeladonFish"]
[Black "ShanthamGrarks"]
[Result "0-1"]
[WhiteElo "1136"]
[BlackElo "1978"]
[TimeControl "300"]
[EndTime "15:53:51 PDT"]
[Termination "ShanthamGrarks won by resignation"]

1. d4 {[%clk 0:04:57.8]} 1... e6 {[%clk 0:04:54.1]} 2. c4 {[%clk 0:04:55.4]}
2... f5 {[%clk 0:04:53.4]} 3. Nc3 {[%clk 0:04:54.5]} 3... Nf6 {[%clk 0:04:53]}
4. Bf4 {[%clk 0:04:53.4]} 4... c6 {[%clk 0:04:52.1]} 5. Nf3 {[%clk 0:04:52.3]}
5... d5 {[%clk 0:04:51.6]} 6. e3 {[%clk 0:04:50.3]} 6... Bd6 {[%clk 0:04:50.4]}
7. Bxd6 {[%clk 0:04:48.4]} 7... Qxd6 {[%clk 0:04:48.6]} 8. Be2 {[%clk
0:04:47.1]} 8... O-O {[%clk 0:04:46.4]} 9. O-O {[%clk 0:04:46.2]} 9... Nbd7
{[%clk 0:04:44.7]} 10. cxd5 {[%clk 0:04:43.3]} 10... cxd5 {[%clk 0:04:42]} 11.
Qb3 {[%clk 0:04:39.3]} 11... a6 {[%clk 0:04:35.8]} 12. Na4 {[%clk 0:04:34.8]}
12... b5 {[%clk 0:04:31.1]} 13. Nc3 {[%clk 0:04:32.6]} 13... Bb7 {[%clk
0:04:23.3]} 14. a4 {[%clk 0:04:24.6]} 14... b4 {[%clk 0:04:19.5]} 15. Na2 {[%clk
0:04:21.9]} 15... a5 {[%clk 0:04:18.4]} 16. Bb5 {[%clk 0:04:19.4]} 16... Ba6
{[%clk 0:04:12.8]} 17. Rfc1 {[%clk 0:04:13.5]} 17... Bxb5 {[%clk 0:04:11.5]} 18.
axb5 {[%clk 0:04:11.1]} 18... Rfc8 {[%clk 0:04:06.9]} 19. Rc6 {[%clk 0:03:59]}
19... Rxc6 {[%clk 0:04:03.1]} 20. bxc6 {[%clk 0:03:57.9]} 20... Qxc6 {[%clk
0:03:59.1]} 21. Rc1 {[%clk 0:03:52.5]} 21... Qb7 {[%clk 0:03:40.5]} 22. Ne5
{[%clk 0:03:43.7]} 22... Nxe5 {[%clk 0:03:38.6]} 23. dxe5 {[%clk 0:03:42.8]}
23... Nd7 {[%clk 0:03:26]} 24. f4 {[%clk 0:03:41.6]} 24... Rc8 {[%clk
0:03:18.5]} 25. Rxc8+ {[%clk 0:03:39.5]} 25... Qxc8 {[%clk 0:03:17.4]} 26. Kf2
{[%clk 0:03:38.3]} 26... Nc5 {[%clk 0:03:15.3]} 27. Qa4 {[%clk 0:03:35]} 27...
Nd3+ {[%clk 0:03:06.7]} 28. Kf3 {[%clk 0:03:34.1]} 28... Qa8 {[%clk 0:02:58]}
29. b3 {[%clk 0:03:29.8]} 29... d4+ {[%clk 0:02:53.3]} 30. Ke2 {[%clk
0:03:27.5]} 30... Nc5 {[%clk 0:02:41.6]} 31. Nxb4 {[%clk 0:03:25.3]} 31... Nxa4
{[%clk 0:02:39.2]} 0-1